[Event "GER-ch Youth-U10 2022"]
[Site "Willingen"]
[Date "2022.06.05"]
[Round "2.6"]
[White "Gersemann, Karl"]
[Black "Kutz, Paul Matti"]
[Result "0-1"]
[ECO "C01"]
[WhiteElo "1620"]
[BlackElo "1202"]
[Annotator "NA RC COMBH"]
[PlyCount "94"]
[EventDate "2022.06.05"]
[EventType "swiss"]
[EventRounds "11"]
[EventCountry "GER"]
[SourceTitle "playchess.com"]
[Source "ChessBase"]
[SourceQuality "1"]
[TimeControl "40/4500+30:900+30"]

1. e4 {[%emt 0:00:03]} e6 {[%emt 0:00:06]} 2. d4 {[%emt 0:00:09]} d5 {[%emt 0:00:09]} 3. Bd3 {[%emt 0:00:08]} Nf6 {[%emt 0:00:10]} 4. e5 {[%emt 0:00:44]} Nfd7 {[%emt 0:00:22]} 5. f4 {[%emt 0:00:45]} c5 {[%emt 0:00:16]} 6. c3 {[%emt 0:00:21]} Nc6 {[%emt 0:00:26]} 7. Nf3 {[%emt 0:04:12]} Qb6 {[%emt 0:01:05]} 8. Qb3 {[%emt 0:01:29]} cxd4 {[%emt 0:02:33]} 9. Qxb6 {[%emt 0:00:10]} Nxb6 {[%emt 0:00:31]} 10. cxd4 {[%emt 0:00:09]} Nb4 {[%emt 0:01:32]} 11. Ke2 {[%emt 0:00:20]} Nxd3 {[%emt 0:01:36]} 12. Kxd3 {[%emt 0:00:13]} Bd7 {[%emt 0:01:29]} 13. Nc3 {[%emt 0:01:49]} Rc8 {[%emt 0:02:49]} 14. Nd2 {[%emt 0:01:57]} Bb4 {[%emt 0:02:12]} 15. Ndb1 {[%emt 0:01:09]} O-O {[%emt 0:02:38]} 16. a3 {[%emt 0:00:38]} Bxc3 {[%emt 0:01:20]} 17. Nxc3 {[%emt 0:00:12]} Nc4 {[%emt 0:00:30]} 18. b3 {[%emt 0:00:19]} Na5 {[%emt 0:00:21]} 19. Rb1 {[%emt 0:00:30]} Rc7 {[%emt 0:00:47]} 20. Bd2 {[%emt 0:00:11]} Rfc8 {[%emt 0:03:08]} 21. Rhc1 {[%emt 0:00:34]} f6 {[%emt 0:02:50]} 22. g4 {[%emt 0:01:10]} fxe5 {[%emt 0:01:06]} 23. fxe5 {[%emt 0:00:22]} Be8 {[%emt 0:00:32]} 24. Rb2 {[%emt 0:00:52]} Bg6+ {[%emt 0:02:09]} 25. Ke3 {[%emt 0:02:14]} Rf7 {[%emt 0:06:13]} 26. Ne2 {[%emt 0:03:43]} Nc6 {[%emt 0:08:09]} 27. Nf4 {[%emt 0:00:52]} Rcf8 {[%emt 0:03:02]} 28. Rf1 {[%emt 0:01:25]} Be4 {[%emt 0:02:21]} 29. Bc1 {[%emt 0:02:00]} g5 {[%emt 0:00:46]} 30. Nxe6 {[%emt 0:00:50]} Rxf1 {[%emt 0:00:16]} 31. Nxf8 {[%emt 0:00:12]} Kxf8 {[%emt 0:00:48]} 32. Rf2+ {[%emt 0:02:15]} Rxf2 {[%emt 0:00:09]} 33. Kxf2 {[%emt 0:00:04]} Nxd4 {[%emt 0:00:36]} 34. Bxg5 {[%emt 0:00:31]} Nxb3 {[%emt 0:00:41]} 35. Bh6+ {[%emt 0:00:39]} Kf7 {[%emt 0:00:17]} 36. h4 {[%emt 0:00:30]} d4 {[%emt 0:00:32]} 37. Ke2 {[%emt 0:00:38]} d3+ {[%emt 0:01:10]} 38. Ke1 {[%emt 0:00:30]} d2+ {[%emt 0:00:16]} 39. Bxd2 {[%emt 0:00:19]} Nxd2 {[%emt 0:00:07]} 40. Kxd2 {[%emt 0:00:15]} Ke6 {[%emt 0:00:22]} 41. Ke3 {[%emt 0:15:17]} Kxe5 {[%emt 0:15:18]} 42. g5 {[%emt 0:00:13]} b5 {[%emt 0:00:12]} 43. h5 {[%emt 0:00:11]} a5 {[%emt 0:00:14]} 44. h6 {[%emt 0:00:14]} b4 {[%emt 0:00:07]} 45. g6 {[%emt 0:00:26]} Bxg6 {[%emt 0:00:25]} 46. Kd2 {[%emt 0:00:28]} bxa3 {[%emt 0:00:44]} 47. Kc3 {[%emt 0:00:08]} a4 {[%emt 0:00:02]} 0-1

[Event "GER-ch Youth-U10 2022"]
[Site "Willingen"]
[Date "2022.06.05"]
[Round "2.7"]
[White "Sheng, Ming"]
[Black "Junge, Mattheo Gabriel"]
[Result "1/2-1/2"]
[ECO "C50"]
[WhiteElo "1258"]
[BlackElo "1132"]
[Annotator "NA RC COMBH"]
[PlyCount "99"]
[EventDate "2022.06.05"]
[EventType "swiss"]
[EventRounds "11"]
[EventCountry "GER"]
[SourceTitle "playchess.com"]
[Source "ChessBase"]
[SourceQuality "1"]
[TimeControl "40/4500+30:900+30"]

1. e4 {[%emt 0:00:03]} e5 {[%emt 0:00:05]} 2. Nf3 {[%emt 0:00:09]} Nc6 {[%emt 0:00:06]} 3. Bc4 {[%emt 0:00:11]} Bc5 {[%emt 0:00:14]} 4. Nc3 {[%emt 0:00:07]} Nf6 {[%emt 0:00:18]} 5. d3 {[%emt 0:00:13]} d6 {[%emt 0:00:26]} 6. Bg5 {[%emt 0:00:11]} h6 {[%emt 0:01:07]} 7. Bxf6 {[%emt 0:00:15]} Qxf6 {[%emt 0:00:14]} 8. Nd5 {[%emt 0:00:03]} Qd8 {[%emt 0:00:14]} 9. c3 {[%emt 0:00:09]} Be6 {[%emt 0:01:01]} 10. O-O {[%emt 0:00:23]} O-O {[%emt 0:02:23]} 11. d4 {[%emt 0:00:10]} exd4 {[%emt 0:20:10]} 12. cxd4 {[%emt 0:00:22]} Bb4 {[%emt 0:01:07]} 13. Qb3 {[%emt 0:01:40]} a5 {[%emt 0:00:57]} 14. Nxb4 {[%emt 0:00:16]} Nxb4 {[%emt 0:00:34]} 15. Bxe6 {[%emt 0:00:14]} fxe6 {[%emt 0:00:11]} 16. Qxe6+ {[%emt 0:00:15]} Kh8 {[%emt 0:00:19]} 17. a3 {[%emt 0:00:45]} Nc6 {[%emt 0:00:52]} 18. d5 {[%emt 0:01:00]} Re8 {[%emt 0:00:42]} 19. Qf5 {[%emt 0:00:33]} Ne5 {[%emt 0:00:17]} 20. Nd4 {[%emt 0:00:41]} Qf6 {[%emt 0:02:27]} 21. Qxf6 {[%emt 0:00:17]} gxf6 {[%emt 0:00:07]} 22. Ne6 {[%emt 0:00:20]} Re7 {[%emt 0:01:20]} 23. f4 {[%emt 0:01:02]} Nd3 {[%emt 0:00:35]} 24. Rab1 {[%emt 0:00:23]} Nc5 {[%emt 0:00:26]} 25. Nxc5 {[%emt 0:00:12]} dxc5 {[%emt 0:00:04]} 26. Rbe1 {[%emt 0:00:30]} Rae8 {[%emt 0:00:18]} 27. e5 {[%emt 0:00:56]} fxe5 {[%emt 0:00:54]} 28. fxe5 {[%emt 0:00:07]} Rxe5 {[%emt 0:00:13]} 29. Rf8+ {[%emt 0:00:18]} Rxf8 {[%emt 0:00:05]} 30. Rxe5 {[%emt 0:00:12]} Kg7 {[%emt 0:00:52]} 31. g3 {[%emt 0:01:11]} Rf7 {[%emt 0:00:59]} 32. Kg2 {[%emt 0:00:10]} Kf6 {[%emt 0:00:44]} 33. Re6+ {[%emt 0:00:23]} Kg7 {[%emt 0:00:51]} 34. d6 {[%emt 0:01:21]} cxd6 {[%emt 0:03:49]} 35. Rxd6 {[%emt 0:00:35]} Rf6 {[%emt 0:01:32]} 36. Rd7+ {[%emt 0:00:41]} Rf7 {[%emt 0:00:22]} 37. Rxf7+ {[%emt 0:00:16]} Kxf7 {[%emt 0:00:05]} 38. Kf3 {[%emt 0:00:11]} Ke6 {[%emt 0:01:32]} 39. Ke4 {[%emt 0:01:28]} b5 {[%emt 0:00:30]} 40. b3 {[%emt 0:01:40]} a4 {[%emt 0:07:59]} 41. bxa4 {[%emt 0:15:15]} bxa4 {[%emt 0:15:12]} 42. h3 {[%emt 0:01:09]} h5 {[%emt 0:03:39]} 43. g4 {[%emt 0:00:59]} hxg4 {[%emt 0:00:14]} 44. hxg4 {[%emt 0:00:02]} Kf6 {[%emt 0:00:12]} 45. Kd5 {[%emt 0:00:06]} Kg5 {[%emt 0:00:05]} 46. Kxc5 {[%emt 0:00:09]} Kxg4 {[%emt 0:00:05]} 47. Kb5 {[%emt 0:00:13]} Kf5 {[%emt 0:00:08]} 48. Kxa4 {[%emt 0:00:04]} Ke6 {[%emt 0:00:12]} 49. Kb5 {[%emt 0:00:34]} Kd7 {[%emt 0:00:15]} 50. Kb6 {[%emt 0:00:37]} 1/2-1/2

[Event "GER-ch Youth-U10 2022"]
[Site "Willingen"]
[Date "2022.06.05"]
[Round "2.8"]
[White "Svanidze, Alexander"]
[Black "Fadeev, Justin Michael"]
[Result "0-1"]
[ECO "B31"]
[WhiteElo "1348"]
[BlackElo "1320"]
[Annotator "NA RC COMBH"]
[PlyCount "70"]
[EventDate "2022.06.05"]
[EventType "swiss"]
[EventRounds "11"]
[EventCountry "GER"]
[SourceTitle "playchess.com"]
[Source "ChessBase"]
[SourceQuality "1"]
[TimeControl "40/4500+30:900+30"]

1. e4 {[%emt 0:00:04]} c5 {[%emt 0:00:06]} 2. Nf3 {[%emt 0:00:05]} Nc6 {[%emt 0:00:08]} 3. Bb5 {[%emt 0:00:06]} g6 {[%emt 0:00:40]} 4. O-O {[%emt 0:00:12]} Bg7 {[%emt 0:00:15]} 5. Bxc6 {[%emt 0:00:07]} bxc6 {[%emt 0:00:20]} 6. Re1 {[%emt 0:00:07]} Nf6 {[%emt 0:01:20]} 7. e5 {[%emt 0:00:08]} Nd5 {[%emt 0:00:11]} 8. c4 {[%emt 0:00:05]} Nb6 {[%emt 0:01:23]} 9. d3 {[%emt 0:00:38]} O-O {[%emt 0:00:17]} 10. Nc3 {[%emt 0:00:54]} d5 {[%emt 0:03:34]} 11. exd6 {[%emt 0:02:42]} exd6 {[%emt 0:00:15]} 12. Bf4 {[%emt 0:00:24]} d5 {[%emt 0:00:47]} 13. cxd5 {[%emt 0:00:46]} cxd5 {[%emt 0:00:10]} 14. d4 {[%emt 0:00:31]} c4 {[%emt 0:03:11]} 15. Qd2 {[%emt 0:02:30]} Bf5 {[%emt 0:02:45]} 16. Bh6 {[%emt 0:01:51]} Qc7 {[%emt 0:02:19]} 17. a4 {[%emt 0:01:06]} a5 {[%emt 0:01:37]} 18. Nb5 {[%emt 0:02:53]} Qb7 {[%emt 0:10:21]} 19. Ne5 {[%emt 0:02:31]} Rfd8 {[%emt 0:04:37]} 20. Qf4 {[%emt 0:07:20]} Nxa4 {[%emt 0:02:08]} 21. Rxa4 {[%emt 0:05:57]} Qxb5 {[%emt 0:01:18]} 22. Raa1 {[%emt 0:02:05]} Re8 {[%emt 0:06:22]} 23. Bxg7 {[%emt 0:03:42]} Kxg7 {[%emt 0:04:32]} 24. Nxf7 {[%emt 0:03:06]} Rxe1+ {[%emt 0:03:12]} 25. Rxe1 {[%emt 0:00:12]} Kxf7 {[%emt 0:00:18]} 26. g4 {[%emt 0:00:20]} Qd7 {[%emt 0:00:17]} 27. Re5 {[%emt 0:00:33]} Re8 {[%emt 0:03:59]} 28. gxf5 {[%emt 0:03:49]} Rxe5 {[%emt 0:01:34]} 29. fxg6+ {[%emt 0:00:43]} Kxg6 {[%emt 0:00:10]} 30. dxe5 {[%emt 0:00:56]} Qf5 {[%emt 0:01:36]} 31. Qd4 {[%emt 0:02:07]} Qb1+ {[%emt 0:00:19]} 32. Kg2 {[%emt 0:00:21]} Qe4+ {[%emt 0:00:06]} 33. Qxe4+ {[%emt 0:00:06]} dxe4 {[%emt 0:00:09]} 34. f4 {[%emt 0:01:39]} c3 {[%emt 0:00:31]} 35. bxc3 {[%emt 0:00:50]} a4 {[%emt 0:02:13]} 0-1

[Event "GER-ch Youth-U10 2022"]
[Site "Willingen"]
[Date "2022.06.05"]
[Round "2.9"]
[White "Zimmer, Tim"]
[Black "Belin, Anton"]
[Result "1-0"]
[ECO "B01"]
[WhiteElo "1164"]
[BlackElo "1213"]
[Annotator "NA RC COMBH"]
[PlyCount "145"]
[EventDate "2022.06.05"]
[EventType "swiss"]
[EventRounds "11"]
[EventCountry "GER"]
[SourceTitle "playchess.com"]
[Source "ChessBase"]
[SourceQuality "1"]
[TimeControl "40/4500+30:900+30"]

1. e4 {[%emt 0:00:02]} d5 {[%emt 0:00:01]} 2. exd5 {[%emt 0:00:11]} Nf6 {[%emt 0:00:05]} 3. d4 {[%emt 0:00:59]} Nxd5 {[%emt 0:00:24]} 4. c4 {[%emt 0:00:49]} Nb6 {[%emt 0:00:05]} 5. Nc3 {[%emt 0:00:51]} Bf5 {[%emt 0:00:09]} 6. Bf4 {[%emt 0:00:51]} Nc6 {[%emt 0:00:17]} 7. Nf3 {[%emt 0:00:59]} e6 {[%emt 0:00:26]} 8. a3 {[%emt 0:03:27]} Be7 {[%emt 0:01:11]} 9. Be2 {[%emt 0:00:00]} O-O {[%emt 0:00:15]} 10. O-O {[%emt 0:00:05]} Na5 {[%emt 0:01:11]} 11. c5 {[%emt 0:02:22]} Nd5 {[%emt 0:00:13]} 12. Nxd5 {[%emt 0:00:31]} exd5 {[%emt 0:00:42]} 13. b4 {[%emt 0:00:32]} Nc6 {[%emt 0:00:53]} 14. b5 {[%emt 0:01:05]} Nb8 {[%emt 0:02:42]} 15. Bd3 {[%emt 0:06:29]} Bxd3 {[%emt 0:00:44]} 16. Qxd3 {[%emt 0:00:07]} Nd7 {[%emt 0:00:05]} 17. Rfe1 {[%emt 0:02:36]} c6 {[%emt 0:00:12]} 18. bxc6 {[%emt 0:00:44]} bxc6 {[%emt 0:00:06]} 19. Qa6 {[%emt 0:00:21]} Bxc5 {[%emt 0:02:57]} 20. dxc5 {[%emt 0:02:56]} Nxc5 {[%emt 0:00:05]} 21. Qxc6 {[%emt 0:02:39]} Nd3 {[%emt 0:00:53]} 22. Bc7 {[%emt 0:01:34]} Qc8 {[%emt 0:00:37]} 23. Re7 {[%emt 0:00:33]} Nf4 {[%emt 0:02:06]} 24. Qd7 {[%emt 0:02:24]} Ne6 {[%emt 0:03:08]} 25. Qxc8 {[%emt 0:01:25]} Rfxc8 {[%emt 0:00:21]} 26. Bd6 {[%emt 0:02:41]} Rc6 {[%emt 0:00:13]} 27. Bg3 {[%emt 0:01:13]} Rac8 {[%emt 0:00:41]} 28. h3 {[%emt 0:00:01]} a6 {[%emt 0:01:00]} 29. Ne5 {[%emt 0:00:47]} R6c7 {[%emt 0:00:52]} 30. Rxc7 {[%emt 0:04:07]} Rxc7 {[%emt 0:00:09]} 31. Rd1 {[%emt 0:00:47]} Rc5 {[%emt 0:00:52]} 32. Nd7 {[%emt 0:00:25]} Ra5 {[%emt 0:00:12]} 33. Nb6 {[%emt 0:00:53]} d4 {[%emt 0:00:19]} 34. Bd6 {[%emt 0:01:32]} h6 {[%emt 0:04:03]} 35. Nc4 {[%emt 0:00:00]} Ra4 {[%emt 0:01:04]} 36. Bb4 {[%emt 0:00:00]} a5 {[%emt 0:01:07]} 37. Nxa5 {[%emt 0:00:06]} Nf4 {[%emt 0:00:23]} 38. Nc4 {[%emt 0:00:25]} Kh7 {[%emt 0:00:57]} 39. Na5 {[%emt 0:00:10]} Kg6 {[%emt 0:00:21]} 40. Kf1 {[%emt 0:00:18]} d3 {[%emt 0:00:03]} 41. g3 {[%emt 0:15:42]} Nxh3 {[%emt 0:15:24]} 42. f4 {[%emt 0:00:38]} Kf5 {[%emt 0:00:29]} 43. Rxd3 {[%emt 0:00:19]} g5 {[%emt 0:00:26]} 44. Kg2 {[%emt 0:00:38]} g4 {[%emt 0:00:52]} 45. Rd7 {[%emt 0:00:27]} f6 {[%emt 0:00:09]} 46. Ra7 {[%emt 0:00:18]} h5 {[%emt 0:00:18]} 47. Nc6 {[%emt 0:01:04]} Rxa7 {[%emt 0:00:06]} 48. Nxa7 {[%emt 0:00:03]} Ke6 {[%emt 0:00:11]} 49. Nc6 {[%emt 0:00:11]} Kd7 {[%emt 0:00:04]} 50. Nd4 {[%emt 0:00:12]} h4 {[%emt 0:02:09]} 51. a4 {[%emt 0:00:27]} Kd8 {[%emt 0:00:40]} 52. a5 {[%emt 0:00:07]} Kc8 {[%emt 0:00:07]} 53. a6 {[%emt 0:00:11]} hxg3 {[%emt 0:00:13]} 54. Kxg3 {[%emt 0:00:18]} Kb8 {[%emt 0:00:15]} 55. Bc5 {[%emt 0:00:32]} Ka8 {[%emt 0:00:20]} 56. a7 {[%emt 0:00:11]} Ng1 {[%emt 0:00:08]} 57. Ne6 {[%emt 0:00:14]} Ne2+ {[%emt 0:00:25]} 58. Kxg4 {[%emt 0:00:05]} Nc3 {[%emt 0:01:03]} 59. Nc7+ {[%emt 0:00:08]} Kb7 {[%emt 0:00:06]} 60. a8=Q+ {[%emt 0:00:04]} Kxc7 {[%emt 0:00:07]} 61. Qa6 {[%emt 0:00:26]} Kd7 {[%emt 0:00:15]} 62. Qd6+ {[%emt 0:00:13]} Kc8 {[%emt 0:00:09]} 63. Qc6+ {[%emt 0:00:19]} Kb8 {[%emt 0:00:19]} 64. Bb6 {[%emt 0:00:12]} f5+ {[%emt 0:00:24]} 65. Kxf5 {[%emt 0:00:05]} Nb5 {[%emt 0:00:06]} 66. Qxb5 {[%emt 0:00:09]} Kb7 {[%emt 0:00:26]} 67. Ke6 {[%emt 0:00:26]} Kb8 {[%emt 0:00:11]} 68. Qc5 {[%emt 0:00:26]} Kb7 {[%emt 0:00:08]} 69. Ba5 {[%emt 0:00:25]} Kb8 {[%emt 0:00:16]} 70. Qb6+ {[%emt 0:00:36]} Ka8 {[%emt 0:00:11]} 71. Qb5 {[%emt 0:00:06]} Ka7 {[%emt 0:00:08]} 72. Bc7 {[%emt 0:00:06]} Ka8 {[%emt 0:00:05]} 73. Qb8# {[%emt 0:00:14]} 1-0

[Event "GER-ch Youth-U10 2022"]
[Site "Willingen"]
[Date "2022.06.05"]
[Round "2.10"]
[White "Heitmann, Erik"]
[Black "Rau, Eduard"]
[Result "0-1"]
[ECO "E30"]
[WhiteElo "1287"]
[BlackElo "1406"]
[Annotator "NA RC COMBH"]
[PlyCount "108"]
[EventDate "2022.06.05"]
[EventType "swiss"]
[EventRounds "11"]
[EventCountry "GER"]
[SourceTitle "playchess.com"]
[Source "ChessBase"]
[SourceQuality "1"]
[TimeControl "40/4500+30:900+30"]

1. d4 {[%emt 0:00:05]} Nf6 {[%emt 0:00:05]} 2. c4 {[%emt 0:00:26]} e6 {[%emt 0:00:28]} 3. Nc3 {[%emt 0:00:35]} Bb4 {[%emt 0:00:16]} 4. Bg5 {[%emt 0:01:19]} Ne4 {[%emt 0:01:12]} 5. Bxd8 {[%emt 0:00:57]} Nxc3 {[%emt 0:00:12]} 6. Qd2 {[%emt 0:04:17]} Nxa2 {[%emt 0:00:38]} 7. Bg5 {[%emt 0:01:10]} Nc6 {[%emt 0:02:44]} 8. d5 {[%emt 0:02:41]} Bxd2+ {[%emt 0:00:43]} 9. Bxd2 {[%emt 0:00:59]} Nab4 {[%emt 0:00:29]} 10. Bxb4 {[%emt 0:05:39]} Nxb4 {[%emt 0:00:12]} 11. O-O-O {[%emt 0:00:13]} d6 {[%emt 0:00:41]} 12. e4 {[%emt 0:01:29]} O-O {[%emt 0:00:28]} 13. Nf3 {[%emt 0:00:14]} Re8 {[%emt 0:00:53]} 14. Nd4 {[%emt 0:00:23]} exd5 {[%emt 0:00:38]} 15. exd5 {[%emt 0:00:41]} Bd7 {[%emt 0:00:39]} 16. Bd3 {[%emt 0:02:09]} a5 {[%emt 0:01:25]} 17. h4 {[%emt 0:04:57]} a4 {[%emt 0:00:26]} 18. f3 {[%emt 0:01:50]} a3 {[%emt 0:00:51]} 19. bxa3 {[%emt 0:00:06]} Rxa3 {[%emt 0:00:06]} 20. Be4 {[%emt 0:01:06]} g6 {[%emt 0:12:39]} 21. Rhe1 {[%emt 0:03:34]} Ba4 {[%emt 0:08:35]} 22. Bc2 {[%emt 0:04:57]} Ra1+ {[%emt 0:00:40]} 23. Kd2 {[%emt 0:00:38]} Rxe1 {[%emt 0:00:13]} 24. Bxa4 {[%emt 0:02:31]} Rexd1+ {[%emt 0:02:11]} 25. Bxd1 {[%emt 0:00:18]} c5 {[%emt 0:02:35]} 26. Nb5 {[%emt 0:01:53]} Ra2+ {[%emt 0:01:34]} 27. Ke3 {[%emt 0:01:13]} Rb2 {[%emt 0:04:45]} 28. Nxd6 {[%emt 0:00:52]} b5 {[%emt 0:00:13]} 29. Nxb5 {[%emt 0:00:23]} Nxd5+ {[%emt 0:00:13]} 30. cxd5 {[%emt 0:00:24]} Rxb5 {[%emt 0:00:10]} 31. d6 {[%emt 0:00:27]} Kf8 {[%emt 0:00:24]} 32. d7 {[%emt 0:00:44]} Ke7 {[%emt 0:00:13]} 33. Ba4 {[%emt 0:00:04]} Rb7 {[%emt 0:00:20]} 34. Kd3 {[%emt 0:00:25]} f5 {[%emt 0:00:14]} 35. Kc4 {[%emt 0:00:16]} Rb4+ {[%emt 0:00:05]} 36. Kxc5 {[%emt 0:00:18]} Rxa4 {[%emt 0:00:10]} 37. g3 {[%emt 0:00:33]} Kxd7 {[%emt 0:01:20]} 38. Kd5 {[%emt 0:00:05]} h5 {[%emt 0:00:14]} 39. Ke5 {[%emt 0:00:09]} Ke7 {[%emt 0:00:06]} 40. f4 {[%emt 0:00:49]} Ra3 {[%emt 0:00:28]} 41. Kd5 {[%emt 0:15:17]} Rxg3 {[%emt 0:15:10]} 42. Kd4 {[%emt 0:00:10]} Kd6 {[%emt 0:00:07]} 43. Kc4 {[%emt 0:00:09]} Rf3 {[%emt 0:00:05]} 44. Kd4 {[%emt 0:00:07]} Rxf4+ {[%emt 0:00:05]} 45. Ke3 {[%emt 0:00:08]} Rxh4 {[%emt 0:00:05]} 46. Kf3 {[%emt 0:00:11]} Ke5 {[%emt 0:00:06]} 47. Kg3 {[%emt 0:00:07]} g5 {[%emt 0:00:03]} 48. Kf3 {[%emt 0:00:22]} g4+ {[%emt 0:00:05]} 49. Kg3 {[%emt 0:00:06]} Rh3+ {[%emt 0:00:04]} 50. Kg2 {[%emt 0:00:13]} f4 {[%emt 0:00:07]} 51. Kf2 {[%emt 0:00:08]} Rh2+ {[%emt 0:00:09]} 52. Kg1 {[%emt 0:00:06]} g3 {[%emt 0:00:03]} 53. Kf1 {[%emt 0:00:12]} f3 {[%emt 0:00:04]} 54. Kg1 {[%emt 0:00:12]} h4 {[%emt 0:00:05]} 0-1

[Event "GER-ch Youth-U10 2022"]
[Site "Willingen"]
[Date "2022.06.05"]
[Round "2.12"]
[White "Campora, Daniel H."]
[Black "Stehning, Toni"]
[Result "1/2-1/2"]
[ECO "D32"]
[WhiteElo "2397"]
[BlackElo "1097"]
[Annotator "TA"]
[PlyCount "111"]
[EventDate "2022.06.05"]
[EventType "swiss"]
[EventRounds "11"]
[EventCountry "GER"]
[SourceTitle "playchess.com"]
[Source "ChessBase"]
[SourceQuality "1"]
[TimeControl "40/4500+30:900+30"]

{[%evp 15,111,16,23,-16,1,-67,-40,-26,-31,-29,-27,-78,-21,-18,21,-20,-31,-37,-29,-51,45,42,65,47,53,40,89,89,86,86,102,101,100,0,8,6,6,0,8,0,5,0,6,0,0,0,0,0,0,0,18,18,47,18,50,10,52,52,52,47,60,62,71,0,0,0,14,0,0,0,0,0,6,0,0,0,0,0,0,0,0,0,0,-29969,-29972,-29970,0,0,0,0,0,0,0,0,0,0,0,0]} 1. d4 {[%emt 0:00:04]} d5 {[%emt 0:00:10]} 2. c4 {[%emt 0:00:28]} e6 {[%emt 0:00:11]} 3. Nc3 {[%emt 0:00:47]} c5 {[%emt 0:00:19]} 4. Nf3 {[%emt 0:02:02]} Nc6 {[%emt 0:00:35]} 5. e3 {[%emt 0:01:17]} Nf6 {[%emt 0:00:26]} 6. Be2 {[%emt 0:01:19]} Be7 {[%emt 0:00:17]} 7. O-O {[%emt 0:02:58]} O-O {[%emt 0:00:21]} 8. cxd5 {[%emt 0:04:36]} exd5 {[%emt 0:00:23]} 9. Bb5 {[%emt 0:02:05] D32: Tarrasch Defence: Sidelines and lines without g3.} a6 {[%emt 0:01:06] [#]} 10. Bd3 $146 {[%emt 0:03:18]} (10. Bxc6 $11 bxc6 11. Qc2) ({Predecessor:} 10. Bxc6 bxc6 11. Ne5 Qc7 12. Re1 Bd6 13. f4 cxd4 14. exd4 Re8 15. a3 Bb7 16. b4 Nd7 {0-1 (83) Schulze,N (1072)-Roessler,L (1515) Oberhof 2012}) 10... Bg4 {[%emt 0:01:42]} (10... c4 $5 {[%cal Rc4d3]} 11. Bc2 Nb4 $11) 11. dxc5 {[%emt 0:05:32] Black is slightly better.} Bxc5 {[%emt 0:00:32]} 12. h3 {[%emt 0:00:43]} Bh5 {[%emt 0:00:15]} 13. Bd2 {[%emt 0:00:52]} (13. Be2 $11) 13... Ne5 {[%emt 0:00:34]} ({Black should play} 13... d4 $17 14. exd4 Nxd4) 14. Be2 $11 {[%emt 0:00:33]} Nc4 {[%emt 0:01:02]} 15. b3 {[%emt 0:02:46]} Nxd2 {[%emt 0:00:33]} 16. Qxd2 {[%emt 0:01:19]} Bb4 {[%emt 0:00:29]} 17. Qd4 {[%emt 0:02:53]} Bxc3 {[%emt 0:00:36]} (17... Qa5 $15 18. Na4 Ba3) 18. Qxc3 $14 {[%emt 0:00:37]} Ne4 {[%emt 0:00:16]} 19. Qd4 {[%emt 0:00:39]} Ng5 {[%emt 0:03:58]} 20. Qf4 {[%emt 0:08:44]} (20. Nxg5 {keeps more tension.} Bxe2 21. Rfe1 Bh5 22. Qf4) 20... Bxf3 {[%emt 0:00:48]} (20... Ne4 $14) 21. Bxf3 $16 {[%emt 0:00:24]} Nxf3+ {[%emt 0:00:07]} 22. Qxf3 {[%emt 0:00:06]} Rc8 {[%emt 0:00:39]} 23. Rfd1 {[%emt 0:00:55]} Rc5 {[%emt 0:01:11]} 24. e4 {[%emt 0:02:23]} ({White should try} 24. Rd4 $16) 24... dxe4 $1 $11 {[%emt 0:00:41]} 25. Qxe4 {[%emt 0:00:09]} Qc7 {[%emt 0:00:43]} 26. Re1 {[%emt 0:04:28][%cal Bd1e1,Be1e7,Be7b7][%mdl 32]} Qc6 {[%emt 0:01:27]} 27. b4 {[%emt 0:02:46]} Rc4 {[%emt 0:01:11]} 28. Qxc6 {[%emt 0:00:10]} (28. Qe7 {with more complications.} Qb6 29. a3 Rc7 30. Qe5) 28... Rxc6 {[%emt 0:01:19][%mdl 4096] Endgame KRR-KRR} 29. Re7 {[%emt 0:01:46]} b5 {[%emt 0:00:06]} 30. a4 {[%emt 0:01:55]} Rc4 {[%emt 0:00:22]} 31. axb5 {[%emt 0:00:42]} axb5 {[%emt 0:00:05]} 32. Rb1 {[%emt 0:00:51]} Rd4 {[%emt 0:00:54]} 33. Rb7 {[%emt 0:00:47]} Rd5 {[%emt 0:00:48]} 34. Rc1 {[%emt 0:00:25]} Rfd8 {[%emt 0:00:35]} 35. Rc5 {[%emt 0:01:08] [#] Threatens to win with Rxd5.} (35. Rcc7 $5 {[%cal Rc7f7]}) 35... Rxc5 {[%emt 0:00:10]} 36. bxc5 {[%emt 0:00:04] aiming for c6. KR-KR} Kf8 {[%emt 0:00:05]} 37. Rxb5 {[%emt 0:00:51]} Rc8 {[%emt 0:00:31]} 38. f4 {[%emt 0:00:23]} Ke7 {[%emt 0:00:26]} 39. Rb7+ {[%emt 0:00:17]} (39. Kf2 $16) 39... Ke6 {[%emt 0:00:18]} 40. Rb5 {[%emt 0:01:37]} Kd7 {[%emt 0:00:27]} 41. g4 {[%emt 0:15:48]} Kc6 {[%emt 0:15:24]} 42. Rb3 {[%emt 0:00:09]} Rc7 {[%emt 0:00:44]} 43. Kf2 {[%emt 0:01:48]} Kxc5 {[%emt 0:00:33]} 44. Rc3+ {[%emt 0:00:09]} Kd6 {[%emt 0:00:08]} 45. Rxc7 {[%emt 0:00:05]} Kxc7 {[%emt 0:00:05] K3P-K3P} 46. Ke3 {[%emt 0:00:10]} Kd6 {[%emt 0:00:12]} 47. Ke4 {[%emt 0:00:27]} g6 {[%emt 0:02:01]} 48. h4 {[%emt 0:04:18]} Ke6 {[%emt 0:01:37]} 49. f5+ $2 {[%emt 0:00:15][%mdl 8192]} (49. g5 $11) 49... gxf5+ {[%emt 0:01:15]} 50. gxf5+ {[%emt 0:00:13] [#] KPP-KPP} Kf6 $2 {[%emt 0:00:18]} (50... Kd6 $1 {mates} 51. Kd4 f6 52. Ke4 Kc5 53. Kf3 Kd5 54. Kg3 Ke5 55. Kg4 Ke4 56. Kh3 Kxf5 57. Kg3 Ke4 58. h5 h6 59. Kf2 f5 60. Ke2 f4 61. Kf2 f3 62. Kf1 Kf4 63. Kf2 Kg4 64. Kf1 Kxh5 65. Kf2 Kg4 66. Kf1 h5 67. Ke1 Kg3 68. Kd1 h4 69. Kc2 h3 70. Kd3 h2 71. Kd4 f2 72. Ke4 h1=Q+ 73. Kd4 f1=Q 74. Ke5 Qb7 75. Kd6 Qf4+ 76. Ke6 Qbf7#) 51. Kf4 {[%emt 0:00:07] The position is equal.} h5 {[%emt 0:00:06]} 52. Ke4 {[%emt 0:00:04]} Ke7 {[%emt 0:00:54] White must now prevent ...Kd6.} 53. Ke5 {[%emt 0:00:39]} f6+ $1 {[%emt 0:00:08]} 54. Kd5 {[%emt 0:01:01] White threatens Kc6 and mate.} Kd7 {[%emt 0:00:07]} 55. Kc5 {[%emt 0:01:13] White wants to mate with Kd5.} Kc7 $1 {[%emt 0:00:14]} 56. Kd5 {[%emt 0:00:06] Weighted Error Value: White=0.35/Black=0.22 (precise)} 1/2-1/2